bitfinex/quotes_SOLUSD_20250612
["timestamp","ask_amount","ask_price","bid_price","bid_amount"]
[1749727584284,6.32751202,158.04,158.01,14.10448714]
[1749727587087,32.34724653,158.05,158.02,14.10448714]
[1749727587588,32.34724653,158.05,158.0,18.64964886]
[1749727587815,32.34724653,158.05,158.02,14.10448714]
[1749727588204,32.34724653,158.05,158.0,18.64964886]
[1749727588498,32.34724653,158.05,158.02,14.10448714]
[1749727590812,32.34724653,158.05,158.03,14.10448714]
[1749727591499,32.34724653,158.05,158.02,14.10448714]
[1749727593300,32.34724653,158.05,157.98,5.64]
[1749727593301,32.34724653,158.05,157.99,18.64964886]
[1749727593615,32.34724653,158.05,158.02,14.10448714]
[1749727595827,32.34724653,158.05,158.01,14.10448714]
[1749727596119,32.34724653,158.05,158.02,14.10448714]
[1749727596723,32.34724653,158.05,158.03,14.10448714]
[1749727597236,6.32671932,158.06,158.04,14.10448714]
[1749727597415,32.32637126,158.07,158.05,14.10448714]
[1749727597595,26.0,158.06,158.05,14.10448714]
[1749727598301,58.32637126,158.07,158.05,14.10448714]
[1749727599099,32.32637126,158.07,158.05,14.10448714]
[1749727599415,14.10448714,158.06,157.97,1.5671]
[1749727599611,40.10448714,158.05,158.0,14.10448714]
[1749727601626,6.32751202,158.04,158.0,14.10448714]
[1749727601791,26.0,158.03,158.0,14.10448714]
[1749727602397,26.0,158.03,157.99,14.10448714]
[1749727602806,6.32831287,158.02,158.0,14.10448714]
[1749727607131,40.10448714,158.01,157.98,18.64964886]
[1749727607321,26.0,158.01,157.98,18.64964886]
[1749727608235,26.0,158.01,157.97,14.10448714]
[1749727609512,6.32911392,158.0,157.97,14.10448714]
[1749727609908,6.32911392,158.0,157.98,14.10448714]
[1749727612720,6.32911392,158.0,157.97,14.10448714]
[1749727615738,6.32911392,158.0,157.96,24.28964886]
[1749727615921,6.32911392,158.0,157.97,14.10448714]
[1749727616728,6.32911392,158.0,157.96,24.28964886]
[1749727617058,6.32911392,158.0,157.98,14.10448714]
[1749727617337,6.32911392,158.0,157.96,24.28964886]
[1749727617545,6.32911392,158.0,157.99,18.64964886]
[1749727619941,6.32911392,158.0,157.99,16.83149431]
[1749727620421,26.0,158.01,157.99,14.10448714]
[1749727620422,32.3288599,158.01,157.99,14.10448714]
[1749727620947,32.3288599,158.01,157.98,14.10448714]
[1749727621621,32.3288599,158.01,157.99,14.10448714]
[1749727622537,32.3288599,158.01,157.99,18.64964886]
[1749727624741,32.3288599,158.01,157.97,18.64964886]
[1749727625039,46.43334704,158.01,157.97,18.64964886]
[1749727625220,14.10448714,158.0,157.97,18.64964886]
[1749727625423,26.0,157.99,157.97,18.64964886]
[1749727625945,32.32976933,157.99,157.97,18.64964886]
[1749727628144,40.10448714,157.98,157.94,18.64964886]
[1749727628347,40.10448714,157.95,157.91,14.10448714]
[1749727628646,26.0,157.94,157.91,14.10448714]
[1749727628837,26.0,157.94,157.93,32.754136]
[1749727629542,26.0,157.98,157.93,32.754136]
[1749727629742,26.0,157.98,157.97,14.10448714]
[1749727629929,52.0,157.98,157.97,14.10448714]
[1749727630136,32.32958318,157.99,157.97,14.10448714]
[1749727630336,32.32958318,157.99,157.98,32.754136]
[1749727630529,26.0,157.99,157.98,18.64964886]
[1749727631038,32.32951452,157.99,157.98,18.64964886]
[1749727632361,6.32951452,157.99,157.98,18.64964886]
[1749727632650,32.32951452,157.99,157.98,18.64964886]
[1749727632846,62.25778797,157.99,157.89,7.2745]
[1749727633050,32.32951452,157.99,157.97,18.64964886]
[1749727634349,62.25778797,157.99,157.93,18.64964886]
[1749727634546,62.25778797,157.99,157.89,7.2745]
[1749727634547,62.25778797,157.99,157.95,18.64964886]
[1749727636039,38.62087953,158.01,157.99,18.64964886]
[1749727636244,26.0,158.0,157.99,32.754136]
[1749727636750,26.0,158.0,157.95,18.933972]
[1749727636956,26.0,158.0,157.99,14.10448714]
[1749727637665,26.0,158.02,157.99,14.10448714]
[1749727637945,26.0,158.01,158.0,32.754136]
[1749727638740,6.32807426,158.03,158.01,18.64964886]
[1749727638948,26.0,158.02,158.01,32.754136]
[1749727639352,26.0,158.02,158.0,14.10448714]
[1749727639741,26.0,158.01,158.0,14.10448714]
[1749727639940,26.0,158.03,158.0,14.10448714]
[1749727640256,26.0,158.03,157.96,0.28432314]
[1749727640257,26.0,158.03,158.01,14.10448714]
[1749727640554,26.0,158.02,158.01,14.10448714]
[1749727641353,26.0,158.03,158.01,14.10448714]
[1749727641654,26.0,158.02,158.01,14.10448714]
[1749727643431,58.32795908,158.03,158.01,14.10448714]
[1749727644840,32.32795908,158.03,158.01,14.10448714]
[1749727645042,26.0,158.02,158.01,14.10448714]
[1749727645754,26.0,158.02,158.0,14.10448714]
[1749727646337,12.68674556,158.05,158.01,14.10448714]
[1749727646535,32.32724556,158.05,158.03,18.64964886]
[1749727646754,26.0,158.05,158.03,32.754136]
[1749727646942,52.0,158.05,158.03,32.754136]
[1749727647257,26.0,158.05,158.03,32.754136]
[1749727647751,26.0,158.05,158.0,18.64964886]
[1749727647752,14.10448714,158.04,158.0,18.64964886]
[1749727647961,26.0,158.03,158.0,32.754136]
[1749727648456,26.0,158.03,158.02,14.10448714]
[1749727648937,26.0,158.05,158.03,18.64964886]
[1749727649135,26.0,158.05,158.03,32.754136]
[1749727649446,26.0,158.05,158.03,14.10448714]
[1749727650249,46.43091872,158.07,158.03,14.10448714]
[1749727650452,26.0,158.06,158.03,14.10448714]
[1749727651345,26.0,158.05,158.03,18.64964886]
[1749727652058,26.0,158.05,158.0,18.64964886]
[1749727652263,26.0,158.05,158.01,14.10448714]
[1749727652264,40.10448714,158.05,158.01,14.10448714]
[1749727652467,26.0,158.05,158.03,18.64964886]
[1749727652660,6.32699763,158.06,158.03,32.754136]
[1749727652959,52.0,158.07,158.05,32.754136]
[1749727653165,26.0,158.07,158.05,32.754136]
[1749727653341,32.32643343,158.07,158.01,18.933972]
[1749727653541,58.32643343,158.07,158.01,0.28432314]
[1749727653747,14.10448714,158.06,158.02,14.10448714]
[1749727654049,26.0,158.05,158.03,18.64964886]
[1749727655264,32.32746382,158.05,158.03,18.64964886]
[1749727656267,46.43195096,158.05,158.0,14.10448714]
[1749727656570,46.43195096,158.05,158.0,32.754136]
[1749727656738,62.24973014,158.05,158.0,32.754136]
[1749727657141,48.145243,158.05,158.0,32.754136]
[1749727657371,62.24973014,158.05,158.0,32.754136]
[1749727657541,40.10448714,158.04,158.0,18.64964886]
[1749727657740,25.98,158.03,158.0,18.64964886]
[1749727657964,25.98,158.03,157.93,31.64]
[1749727657965,14.10448714,158.02,157.97,14.10448714]
[1749727658151,25.98,158.03,157.98,18.64964886]
[1749727658152,40.08448714,158.01,157.98,18.64964886]
[1749727658564,40.08448714,158.01,157.96,14.10448714]
[1749727658565,14.10448714,158.0,157.97,18.64964886]
[1749727658768,14.10448714,157.98,157.97,18.64964886]
[1749727659066,14.10448714,157.98,157.95,18.64964886]
[1749727659238,25.98,157.97,157.94,18.64964886]
[1749727659440,6.33071663,157.96,157.94,18.64964886]
[1749727659751,25.98,157.95,157.93,5.64]
[1749727659961,25.98,157.95,157.94,18.64964886]
[1749727661386,25.98,157.95,157.87,1.5713]
[1749727661387,40.08448714,157.95,157.87,1.5713]
[1749727661545,6.33151829,157.94,157.9,14.10448714]
[1749727661882,25.98,157.93,157.92,14.10448714]
[1749727662380,25.98,157.93,157.88,18.64964886]
[1749727662561,25.98,157.93,157.9,14.10448714]
[1749727662869,25.98,157.93,157.92,18.64964886]
[1749727663675,25.98,157.93,157.89,0.28432314]
[1749727663853,25.98,157.93,157.92,18.64964886]
[1749727664171,25.98,157.93,157.89,0.28432314]
[1749727664467,25.98,157.93,157.9,14.10448714]
[1749727665283,32.3120776,157.93,157.9,14.10448714]
[1749727665657,32.3120776,157.93,157.88,18.64964886]
[1749727666247,32.3120776,157.93,157.9,14.10448714]
[1749727666864,32.3120776,157.93,157.88,18.64964886]
[1749727667573,32.3120776,157.93,157.9,14.10448714]
[1749727667876,32.3120776,157.93,157.92,18.64964886]
[1749727669181,32.3120776,157.93,157.88,18.64964886]
[1749727669371,32.3120776,157.93,157.92,18.64964886]
[1749727670268,25.98,157.93,157.92,18.64964886]
[1749727670482,32.3119192,157.93,157.92,18.64964886]
[1749727670865,25.98,157.93,157.92,14.10448714]
[1749727671059,25.98,157.93,157.89,0.28432314]
[1749727671260,6.33156369,157.94,157.89,0.28432314]
[1749727671497,32.33156369,157.94,157.92,18.64964886]
[1749727673185,32.33156369,157.94,157.92,14.10448714]
[1749727673381,6.3737,157.97,157.94,18.64964886]
[1749727673585,6.32911392,158.0,157.97,18.64964886]
[1749727673765,6.32911392,158.0,157.99,18.64964886]
[1749727673962,72.43360106,158.0,157.96,18.64964886]
[1749727674163,40.10448714,157.99,157.96,18.64964886]
[1749727675273,40.10448714,157.99,157.95,14.10448714]
[1749727675591,6.32991517,157.98,157.96,18.64964886]
[1749727675787,26.0,157.97,157.96,18.64964886]
[1749727675964,26.0,157.97,157.94,18.64964886]
[1749727676284,26.0,157.97,157.93,1.6232]
[1749727676285,26.0,157.97,157.96,18.64964886]
[1749727676491,32.33031588,157.97,157.96,18.64964886]
[1749727676784,26.0,157.97,157.96,18.64964886]
[1749727677098,26.0,157.97,157.94,18.64964886]
[1749727677099,32.33035339,157.97,157.94,18.64964886]
[1749727677269,32.33035339,157.97,157.96,18.64964886]
[1749727677473,26.0,157.97,157.96,32.754136]
[1749727678162,58.33047606,157.97,157.93,1.6232]
[1749727678373,58.33047606,157.97,157.94,14.10448714]
[1749727679025,58.33047606,157.97,157.89,0.28432314]
[1749727679206,58.33047606,157.97,157.94,14.10448714]
[1749727679801,58.33047606,157.97,157.94,18.64964886]
[1749727680371,58.33047606,157.97,157.95,14.10448714]
[1749727680690,58.33047606,157.97,157.89,0.28432314]
[1749727680987,88.2607529,157.97,157.93,18.64964886]
[1749727681981,26.0,157.94,157.88,18.64964886]
[1749727682289,26.0,157.93,157.92,32.754136]
[1749727682462,52.0,157.93,157.92,18.64964886]
[1749727682665,58.3319192,157.93,157.92,18.64964886]
[1749727683604,58.3319192,157.93,157.87,1.6306]
[1749727683788,88.26620435,157.93,157.88,18.64964886]
[1749727683991,88.26620435,157.93,157.88,32.754136]
[1749727684303,88.26620435,157.93,157.87,18.64964886]
[1749727684490,88.26620435,157.93,157.88,14.10448714]
[1749727684700,22.16452409,157.91,157.87,18.64964886]
[1749727684883,26.0,157.9,157.87,32.754136]
[1749727685283,66.10448714,157.9,157.84,18.64964886]
[1749727685590,52.0,157.9,157.86,14.10448714]
[1749727686614,6.33352333,157.89,157.87,14.10448714]
[1749727686911,6.33352333,157.89,157.84,18.64964886]
[1749727686912,26.0,157.88,157.84,18.64964886]
[1749727687116,26.0,157.88,157.87,14.10448714]
[1749727687813,26.0,157.91,157.87,14.24664871]
[1749727688013,52.0,157.91,157.9,18.64964886]
[1749727688620,58.33272117,157.91,157.87,0.14216157]
[1749727688987,58.33272117,157.91,157.88,18.64964886]
[1749727689519,58.33272117,157.91,157.88,14.10448714]
[1749727690898,58.33272117,157.91,157.85,18.933972]
[1749727691102,58.33272117,157.91,157.85,0.28432314]
[1749727691295,32.33272117,157.91,157.9,18.64964886]
[1749727691511,58.33272117,157.91,157.85,18.933972]
[1749727691815,52.0,157.91,157.9,18.64964886]
[1749727692105,58.33272117,157.91,157.89,14.10448714]
[1749727692308,58.33272117,157.91,157.9,18.64964886]
[1749727692617,6.3324488,157.92,157.9,32.754136]
[1749727692922,32.3324488,157.92,157.9,32.754136]
[1749727693302,6.3324488,157.92,157.9,14.10448714]
[1749727693502,32.3324488,157.92,157.9,14.10448714]
[1749727693895,32.3324488,157.92,157.85,0.28432314]
[1749727694120,32.3324488,157.92,157.9,14.10448714]
[1749727695422,32.33199947,157.93,157.92,18.64964886]
[1749727695593,26.0,157.93,157.91,14.10448714]
[1749727695914,58.33166256,157.94,157.92,14.10448714]
[1749727696098,32.33166256,157.94,157.92,14.10448714]
[1749727696413,58.33166256,157.94,157.9,0.28432314]
[1749727696589,32.33166256,157.94,157.92,14.10448714]
[1749727697007,155.2089,157.99,157.92,14.10448714]
[1749727697008,155.2089,157.99,157.94,18.64964886]
[1749727697210,15.8206817,158.03,157.98,14.10448714]
[1749727697518,15.8206817,158.03,157.95,1.87742314]
[1749727697519,26.0,158.02,157.99,14.10448714]
[1749727698011,26.0,158.02,157.95,1.87742314]
[1749727698218,26.0,158.0,157.95,1.87742314]
[1749727698392,52.0,158.0,157.99,14.10448714]
[1749727698792,52.0,158.0,157.96,18.64964886]
[1749727699112,52.0,158.0,157.95,1.5931]
[1749727699113,14.10448714,157.99,157.94,14.10448714]
[1749727699320,6.33031588,157.97,157.94,14.10448714]
[1749727699492,6.33031588,157.97,157.92,18.64964886]
[1749727699493,6.33031588,157.97,157.95,14.10448714]
[1749727699813,6.33031588,157.97,157.92,18.64964886]
[1749727700023,6.33031588,157.97,157.95,14.10448714]
[1749727701293,6.33031588,157.97,157.94,14.10448714]
[1749727702311,26.0,157.98,157.96,14.10448714]
[1749727702497,26.0,157.98,157.97,18.64964886]
[1749727702695,26.0,157.98,157.97,32.754136]
[1749727703222,32.32966685,157.99,157.97,32.754136]
[1749727703721,72.43415399,157.99,157.97,18.64964886]
[1749727704227,14.10448714,157.98,157.91,1.5449]
[1749727704395,14.10448714,157.95,157.92,18.933972]
[1749727704800,14.10448714,157.96,157.92,18.933972]
[1749727705308,20.43543371,157.96,157.92,18.933972]
[1749727705616,20.43543371,157.96,157.92,18.64964886]
[1749727705818,14.10448714,157.95,157.92,18.64964886]
[1749727706931,20.43573192,157.95,157.92,18.64964886]
[1749727707626,14.10448714,157.94,157.92,18.64964886]
[1749727707798,14.10448714,157.93,157.9,5.62]
[1749727707995,14.10448714,157.91,157.9,24.26964886]
[1749727708199,40.10448714,157.91,157.88,18.64964886]
[1749727708698,14.10448714,157.9,157.88,18.64964886]
[1749727708895,26.0,157.91,157.88,18.64964886]
[1749727709113,14.10448714,157.9,157.88,18.64964886]
[1749727709397,32.33287025,157.91,157.88,18.64964886]
[1749727709598,14.10448714,157.9,157.88,18.64964886]
[1749727709831,46.43735739,157.91,157.88,18.64964886]
[1749727710331,26.0,157.91,157.89,14.10448714]
[1749727710793,26.0,157.91,157.88,32.754136]
[1749727711426,46.43729954,157.91,157.88,18.64964886]
[1749727711600,14.10448714,157.9,157.86,18.64964886]
[1749727712416,58.3328124,157.91,157.86,18.64964886]
[1749727712721,14.10448714,157.9,157.86,18.64964886]
[1749727712926,6.33352333,157.89,157.86,18.64964886]
[1749727714229,20.43765606,157.9,157.86,18.64964886]
[1749727714527,26.0,157.87,157.86,18.64964886]
[1749727715029,26.0,157.87,157.86,14.10448714]
[1749727715727,26.0,157.87,157.84,18.64964886]
[1749727716025,26.0,157.87,157.86,18.64964886]
[1749727716432,26.0,157.87,157.84,18.933972]
[1749727716609,26.0,157.87,157.86,14.10448714]
[1749727717032,26.0,157.89,157.86,14.10448714]
[1749727717328,26.0,157.87,157.86,14.10448714]
[1749727718048,26.0,157.89,157.86,14.10448714]
[1749727718344,26.0,157.89,157.88,18.64964886]
[1749727723529,26.0,157.89,157.86,18.64964886]
[1749727726012,26.0,157.89,157.86,14.10448714]
[1749727726219,26.0,157.89,157.84,18.64964886]
[1749727726442,26.0,157.89,157.86,14.10448714]
[1749727729248,26.0,157.88,157.86,14.10448714]
[1749727729443,26.0,157.88,157.84,18.64964886]
[1749727729641,26.0,157.88,157.86,14.10448714]
[1749727730345,26.0,157.88,157.84,18.64964886]
[1749727730845,46.4377983,157.9,157.86,14.10448714]
[1749727731418,14.10448714,157.89,157.84,18.64964886]
[1749727731620,32.33331116,157.9,157.85,0.28432314]
[1749727731621,26.0,157.9,157.85,0.28432314]
[1749727731929,26.0,157.9,157.89,18.64964886]
[1749727732229,26.0,157.9,157.85,0.28432314]
[1749727732429,26.0,157.88,157.87,18.64964886]
[1749727732743,26.0,157.88,157.87,32.754136]
[1749727733621,26.0,157.92,157.87,32.754136]
[1749727733833,26.0,157.92,157.85,0.28432314]
[1749727733834,26.0,157.9,157.89,18.64964886]
[1749727735352,26.0,157.9,157.85,18.64964886]
[1749727735534,26.0,157.89,157.87,14.10448714]
[1749727735732,6.081178,157.97,157.9,0.28432314]
[1749727736054,14.10448714,157.96,157.92,18.64964886]
[1749727736359,14.10448714,157.95,157.91,18.64964886]
[1749727736654,14.10448714,157.92,157.89,18.64964886]
[1749727737025,20.43641493,157.93,157.89,18.64964886]
[1749727737456,14.10448714,157.92,157.89,18.64964886]
[1749727740038,46.43641493,157.93,157.89,18.64964886]
[1749727740655,14.10448714,157.92,157.89,18.64964886]
[1749727740824,32.33192779,157.93,157.89,18.64964886]
[1749727741024,14.10448714,157.92,157.89,18.64964886]
[1749727741223,14.10448714,157.91,157.89,18.64964886]
[1749727741531,46.43641493,157.93,157.89,18.64964886]
[1749727741731,46.43641493,157.93,157.89,32.754136]
[1749727741947,40.10448714,157.93,157.89,18.64964886]
[1749727742150,26.0,157.93,157.91,18.64964886]
[1749727742319,26.0,157.92,157.91,18.64964886]
[1749727743933,14.10448714,157.95,157.91,14.10448714]
[1749727744230,26.0,157.94,157.91,14.10448714]
[1749727744441,26.0,157.93,157.92,14.10448714]
[1749727744652,20.43496066,157.97,157.92,14.10448714]
[1749727744841,20.4345322,157.98,157.93,14.10448714]
[1749727745141,26.0,157.95,157.93,18.64964886]
[1749727745339,26.0,157.95,157.88,15.73888714]
[1749727745340,32.3319192,157.93,157.88,15.73888714]
[1749727745539,46.43640634,157.93,157.89,18.64964886]
[1749727745752,40.10448714,157.93,157.89,32.754136]
[1749727745929,26.0,157.93,157.89,32.754136]
[1749727746147,40.10448714,157.93,157.89,32.754136]
[1749727747359,46.43647993,157.93,157.89,18.64964886]
[1749727748936,40.10448714,157.93,157.89,18.64964886]
[1749727749449,26.0,157.93,157.89,18.64964886]
[1749727749654,46.43645006,157.93,157.89,18.64964886]
[1749727749860,32.33196292,157.93,157.89,18.64964886]
[1749727750039,14.10448714,157.92,157.89,18.64964886]
[1749727752188,20.43699276,157.92,157.89,18.64964886]
[1749727752693,40.10448714,157.9,157.89,18.64964886]
[1749727753488,40.10448714,157.9,157.86,5.62]
[1749727753697,40.10448714,157.89,157.87,18.64964886]
[1749727753869,26.0,157.89,157.87,18.64964886]
[1749727754261,32.3337885,157.89,157.87,18.64964886]
[1749727754586,14.10448714,157.88,157.87,18.64964886]
[1749727754764,46.43827564,157.89,157.87,18.64964886]
[1749727755658,26.0,157.88,157.87,18.64964886]
[1749727756854,40.10448714,157.88,157.86,5.62]
[1749727757164,32.33401366,157.88,157.84,1.5709]
[1749727757371,26.0,157.86,157.84,18.64964886]
[1749727757571,26.0,157.86,157.85,32.754136]
[1749727757771,52.22,157.89,157.85,14.10448714]
[1749727757997,52.22,157.89,157.83,0.28432314]
[1749727758211,26.0,157.89,157.87,14.10448714]
[1749727758409,14.10448714,157.93,157.88,14.10448714]
[1749727758611,20.43649693,157.93,157.88,14.10448714]
[1749727758796,26.24,157.93,157.9,18.64964886]
[1749727759095,26.0,157.91,157.9,18.64964886]
[1749727760919,26.0,157.91,157.88,0.28432314]
[1749727761106,26.0,157.91,157.89,14.10448714]
[1749727761276,26.0,157.91,157.9,18.64964886]
[1749727762585,46.43736327,157.91,157.87,18.64964886]
[1749727762786,46.43736327,157.91,157.86,1.6344]
[1749727762787,14.10448714,157.89,157.86,18.64964886]
[1749727763190,14.10448714,157.89,157.85,5.62]
[1749727764295,20.43810425,157.89,157.85,5.62]
[1749727764605,46.43810425,157.89,157.85,5.62]
[1749727765423,40.10448714,157.86,157.85,5.62]
[1749727766726,46.43921411,157.86,157.85,5.62]
[1749727768197,32.33472697,157.86,157.85,5.62]
[1749727768499,46.43921411,157.86,157.85,5.62]
[1749727769160,72.69921411,157.86,157.85,5.62]
[1749727769733,58.59472697,157.86,157.85,5.62]
[1749727769918,52.26,157.86,157.85,5.62]
[1749727770094,66.36448714,157.86,157.85,5.62]
[1749727770298,72.69921411,157.86,157.82,18.64964886]
[1749727770504,14.10448714,157.85,157.82,18.64964886]
[1749727770709,66.36448714,157.86,157.82,18.64964886]
[1749727770922,26.0,157.86,157.82,32.754136]
[1749727771110,26.0,157.87,157.84,14.10448714]
[1749727771522,6.3328516,157.91,157.87,18.64964886]
[1749727771699,26.28,157.9,157.87,18.64964886]
[1749727771893,40.38448714,157.9,157.85,14.10448714]
[1749727772236,14.10448714,157.9,157.85,14.10448714]
[1749727772802,20.43769064,157.9,157.85,14.10448714]
[1749727773011,14.10448714,157.89,157.85,14.10448714]
[1749727773345,14.10448714,157.9,157.85,14.10448714]
[1749727773638,14.10448714,157.92,157.88,14.10448714]
[1749727774022,14.10448714,157.92,157.86,0.28432314]
[1749727774023,14.10448714,157.92,157.87,14.10448714]
[1749727774335,14.10448714,157.92,157.88,14.10448714]
[1749727775126,52.26,157.93,157.87,14.10448714]
[1749727775328,14.10448714,157.92,157.87,14.10448714]
[1749727775525,52.26,157.93,157.87,14.10448714]
[1749727775843,14.10448714,157.91,157.86,14.38881028]
[1749727777553,14.10448714,157.9,157.86,14.38881028]
[1749727777750,20.43721242,157.91,157.86,14.38881028]
[1749727777945,6.33248142,157.92,157.87,14.10448714]
[1749727778243,14.10448714,157.91,157.87,14.10448714]
[1749727778751,6.33248142,157.92,157.87,14.10448714]
[1749727778916,20.4372479,157.91,157.87,14.10448714]
[1749727779116,20.4372479,157.91,157.86,14.38881028]
[1749727779646,14.10448714,157.91,157.86,14.38881028]
[1749727780025,14.10448714,157.91,157.86,0.28432314]
[1749727780225,20.43724139,157.91,157.86,14.38881028]
[1749727780445,20.43724139,157.91,157.86,0.28432314]
[1749727780743,14.10448714,157.87,157.84,5.76]
[1749727781040,32.33399159,157.88,157.84,5.76]
[1749727781344,46.43847873,157.88,157.84,5.76]
[1749727781513,26.0,157.88,157.85,18.64964886]
[1749727782212,26.0,157.88,157.82,18.933972]
[1749727782213,32.33401608,157.88,157.82,18.933972]
[1749727782419,32.33401608,157.88,157.76,18.65547688]
[1749727782420,26.0,157.83,157.76,18.65547688]
[1749727782662,14.10448714,157.77,157.75,2.49693469]
[1749727782815,28.24,157.76,157.75,2.49693469]
[1749727783144,10.0,157.71,157.53,221.27091732]
[1749727783332,26.0,157.68,157.63,3.2932733]
[1749727783520,36.0,157.68,157.63,2.7932733]
[1749727783727,10.0,157.67,157.55,6.2569]
[1749727783929,10.0,157.67,157.62,3.29492345]
[1749727784454,10.0,157.67,157.62,14.10448714]
[1749727784743,10.0,157.67,157.62,3.29506368]
[1749727784922,10.0,157.67,157.58,26.0]
[1749727785124,10.0,157.67,157.61,14.10448714]
[1749727785313,0.5,157.66,157.62,21.24283357]
[1749727785640,0.5,157.66,157.59,21.24283357]
[1749727785844,10.0,157.68,157.63,18.79181043]
[1749727786030,10.5,157.68,157.59,26.0]
[1749727786246,0.5,157.68,157.6,20.31251043]
[1749727786548,0.5,157.68,157.54,8.8607]
[1749727786710,10.0,157.69,157.59,21.24283357]
[1749727786915,10.0,157.66,157.61,18.79181043]
[1749727787143,26.0,157.69,157.65,21.24283357]
[1749727787144,10.0,157.67,157.65,21.24283357]
[1749727787348,10.0,157.67,157.62,0.14216157]
[1749727787349,10.0,157.68,157.63,0.14216157]
[1749727787648,0.5,157.67,157.6,18.64964886]
[1749727787836,10.0,157.71,157.61,0.28432314]
[1749727788064,10.0,157.73,157.69,21.24283357]
[1749727788262,10.0,157.73,157.71,21.24283357]
[1749727788565,10.0,157.73,157.69,0.28432314]
[1749727788751,10.0,157.76,157.66,18.933972]
[1749727789199,10.0,157.77,157.75,21.24283357]
[1749727789466,10.0,157.77,157.74,0.28432314]
[1749727789668,10.0,157.76,157.74,21.24283357]
[1749727789963,10.0,157.76,157.73,21.52715671]
[1749727790267,10.0,157.76,157.69,18.64964886]
[1749727790445,10.0,157.76,157.72,21.24283357]
[1749727790648,10.0,157.77,157.7,0.28432314]
[1749727790850,10.0,157.76,157.72,21.52715671]
[1749727791147,10.0,157.76,157.69,18.933972]
[1749727791346,36.5,157.78,157.72,21.52715671]
[1749727791569,57.74283357,157.78,157.73,21.24283357]
[1749727791758,10.0,157.76,157.73,0.14216157]
[1749727791957,36.0,157.73,157.57,18.65547688]
[1749727792140,21.24283357,157.72,157.67,21.24283357]
[1749727792337,26.0,157.73,157.69,39.89248243]
[1749727792556,36.0,157.75,157.69,18.64964886]
[1749727792742,21.24283357,157.74,157.7,18.933972]
[1749727792959,10.0,157.73,157.7,0.28432314]
[1749727793465,10.0,157.73,157.7,18.933972]
[1749727793840,10.0,157.73,157.66,18.64964886]
[1749727794041,10.0,157.73,157.67,0.28432314]
[1749727794267,10.0,157.73,157.68,21.24283357]
[1749727794444,10.0,157.73,157.69,40.17680557]
[1749727794774,10.0,157.73,157.7,21.24283357]
[1749727795080,10.0,157.73,157.7,18.64964886]
[1749727795371,36.0,157.75,157.7,18.64964886]
[1749727795593,36.0,157.75,157.7,21.24283357]
[1749727795594,57.24283357,157.75,157.7,21.24283357]
[1749727795797,57.24283357,157.75,157.66,18.64964886]
[1749727795976,10.0,157.73,157.7,18.933972]
[1749727796370,10.0,157.73,157.66,18.933972]
[1749727796672,10.0,157.72,157.67,21.24283357]
[1749727797293,71.46,157.75,157.66,18.933972]
[1749727797471,10.0,157.72,157.65,1.5284]
[1749727797676,10.0,157.72,157.69,18.933972]
[1749727798061,31.24283357,157.72,157.69,18.933972]
[1749727798259,10.0,157.72,157.69,18.933972]
[1749727798894,10.0,157.72,157.69,0.28432314]
[1749727799097,10.0,157.73,157.69,0.28432314]
[1749727799263,31.24283357,157.73,157.69,18.933972]
[1749727799462,31.24283357,157.73,157.69,40.17680557]
[1749727799680,10.0,157.73,157.69,18.933972]
[1749727799868,10.0,157.73,157.66,18.933972]
[1749727800085,10.0,157.73,157.69,18.933972]
[1749727800291,10.0,157.73,157.7,18.64964886]
[1749727800488,36.0,157.75,157.71,21.52715671]
[1749727800796,10.0,157.74,157.71,0.28432314]
[1749727800964,21.24283357,157.73,157.7,0.28432314]
[1749727801165,21.24283357,157.71,157.66,39.89248243]
[1749727801365,21.24283357,157.7,157.67,0.14216157]
[1749727801582,21.24283357,157.7,157.62,6.599]
[1749727801583,21.24283357,157.68,157.59,1.6507]
[1749727801895,21.24283357,157.67,157.59,1.6507]
[1749727802073,10.0,157.69,157.63,18.933972]
[1749727802396,10.0,157.67,157.59,1.6507]
[1749727802604,10.0,157.66,157.59,1.6507]
[1749727802907,10.0,157.66,157.62,18.64964886]
[1749727803063,10.5,157.69,157.61,26.0]
[1749727803267,31.24283357,157.68,157.63,39.89248243]